fUST/lending_fUST_20241123
["ID","MTS","AMOUNT","RATE_DAILY","PERIOD"]
[343065804,1732321843468,-2937.31338491,0.0002126,2]
[343065806,1732321843479,-62.68661509,0.0002126,2]
[343065808,1732321843489,-3000.0,0.0002127,2]
[343065810,1732321843499,-327.74682489,0.00021273,2]
[343065812,1732321843508,-500.54449603,0.00021273,2]
[343065825,1732321843615,-153.5496516,0.00021273,2]
[343065827,1732321843628,-202.08659183,0.00021273,2]
[343065829,1732321843637,-105.1191976,0.00021273,2]
[343065857,1732321843893,-394.8808024,0.00021273,2]
[343065859,1732321843903,-500.0,0.00021273,2]
[343065862,1732321843913,-500.0,0.00021273,2]
[343065864,1732321843923,-500.0,0.00021273,2]
[343065866,1732321843932,-500.0,0.00021273,2]
[343065868,1732321843942,-500.55988657,0.00021273,2]
[343065870,1732321843951,-506.95754395,0.00021273,2]
[343065872,1732321843960,-552.05671275,0.00021273,2]
[343065874,1732321843969,-262.38503296,0.00021273,2]
[343065876,1732321843979,-504.93997604,0.00021273,2]
[343065878,1732321843988,-500.0,0.00021273,2]
[343065880,1732321843997,-500.45506807,0.00021273,2]
[343065882,1732321844007,-583.91587119,0.00021273,2]
[343065884,1732321844016,-216.43313492,0.00021273,2]
[343065886,1732321844025,-500.0,0.00021273,2]
[343065888,1732321844034,-500.0,0.00021273,2]
[343065890,1732321844045,-3000.0,0.0002128,2]
[343065892,1732321844054,-500.0,0.00021282,2]
[343065894,1732321844064,-110.41543415,0.00021282,2]
[343065938,1732321846241,-389.58456585,0.00021282,2]
[343065939,1732321846252,-500.0,0.00021282,2]
[343065940,1732321846262,-500.0,0.00021282,2]
[343065941,1732321846272,-500.0,0.00021282,2]
[343065942,1732321846281,-500.0,0.00021282,2]
[343065943,1732321846291,-500.0,0.00021282,2]
[343065944,1732321846301,-500.0,0.00021282,2]
[343065945,1732321846313,-500.0,0.00021282,2]
[343065946,1732321846323,-500.0,0.00021282,2]
[343065948,1732321846333,-500.0,0.00021282,2]
[343065950,1732321846343,-500.0,0.00021282,2]
[343065951,1732321846355,-500.0,0.00021282,2]
[343065952,1732321846365,-500.0,0.00021282,2]
[343065953,1732321846374,-500.0,0.00021282,2]
[343065954,1732321846385,-500.0,0.00021282,2]
[343065955,1732321846395,-500.0,0.00021282,2]
[343065956,1732321846405,-500.0,0.00021282,2]
[343065957,1732321846414,-500.0,0.00021282,2]
[343065958,1732321846425,-500.0,0.00021282,2]
[343065959,1732321846435,-500.0,0.00021282,2]
[343065960,1732321846445,-500.0,0.00021282,2]
[343065961,1732321846454,-500.0,0.00021282,2]
[343065962,1732321846464,-500.0,0.00021282,2]
[343065963,1732321846474,-500.0,0.00021282,2]
[343065964,1732321846483,-500.0,0.00021282,2]
[343065965,1732321846493,-500.0,0.00021282,2]
[343065966,1732321846503,-500.0,0.00021282,2]
[343065967,1732321846513,-17.21543413,0.00021282,2]
[343066286,1732322015483,158.237921,0.00013973,2]
[343066369,1732322779010,158.237921,0.00013973,2]
[343067185,1732323032362,-253.6749111,0.00019712,2]
[343067187,1732323032372,-277.815847,0.00019831,2]
[343067188,1732323032382,-871.9524424,0.00019843,2]
[343067191,1732323032392,-160.0,0.0002,2]
[343067193,1732323032401,-300.0,0.00020138,2]
[343067195,1732323032410,-300.0,0.00020138,2]
[343067196,1732323032420,-469.44567776,0.00020139,2]
[343067232,1732323032664,-873.735066,0.00020139,2]
[343067235,1732323032675,-722.59937,0.00020139,2]
[343067238,1732323032696,-11819.52371426,0.00020139,2]
[343067240,1732323032708,-2990.97306248,0.00020139,2]
[343067242,1732323032718,-158.237921,0.00020807,2]
[343067244,1732323032727,-6239.97593054,0.00020989,2]
[343067246,1732323032737,-779.85816725,0.0002129,2]
[343067710,1732323038575,-160.0,0.0002,2]
[343067711,1732323038585,-2220.14183275,0.0002129,2]
[343067712,1732323038594,-2738.23543981,0.000213,2]
[343067713,1732323038606,-261.76456019,0.000213,2]
[343067714,1732323038616,-307.2932981,0.000213,2]
[343067715,1732323038625,-295.6234615,0.000213,2]
[343067719,1732323038642,-147.1847695,0.000213,2]
[343067722,1732323038652,-304.267258,0.000213,2]
[343067725,1732323038661,-153.0,0.000213,2]
[343067728,1732323038671,-424.8326851,0.000213,2]
[343067730,1732323038680,-408.630783,0.000213,2]
[343067732,1732323038689,-153.0,0.000213,2]
[343067734,1732323038698,-153.0,0.000213,2]
[343067736,1732323038707,-1630.53452623,0.0002131,2]
[343067895,1732323040285,-1369.46547377,0.0002131,2]
[343067897,1732323040295,-205.426,0.0002131,2]
[343067899,1732323040303,-3000.0,0.0002132,2]
[343067901,1732323040313,-1122.00050072,0.0002133,2]
[343068118,1732323042505,-2401.43311728,0.0002133,2]
[343068120,1732323042515,-543.79411461,0.0002133,2]
[343068122,1732323042524,-1783.63887243,0.000214,2]
[343068123,1732323042534,-278.73387522,0.000214,2]
[343068125,1732323042545,-500.0,0.00021473,2]
[343068127,1732323042555,-500.0,0.00021473,2]
[343068129,1732323042566,-500.0,0.00021473,2]
[343068131,1732323042576,-500.0,0.00021473,2]
[343068133,1732323042586,-440.08,0.0002149,3]
[343068135,1732323042595,-220.04,0.0002149,3]
[343068137,1732323042605,-660.15,0.0002149,3]
[343068139,1732323042615,-192.6517827,0.00021498,2]
[343068140,1732323042625,-500.0,0.00021499,2]
[343068141,1732323042635,-500.0,0.00021499,2]
[343068142,1732323042644,-260.94097352,0.00021499,2]
[343068143,1732323042654,-182.46595941,0.00021499,2]
[343068144,1732323042664,-182.37503345,0.00021499,2]
[343068145,1732323042673,-500.0,0.00021499,2]
[343068146,1732323042682,-382.07601436,0.00021499,2]
[343068148,1732323042692,-500.5298223,0.00021499,2]
[343068150,1732323042701,-217.95548085,0.00021499,2]
[343068152,1732323042711,-500.0,0.00021499,2]
[343068154,1732323042721,-500.0,0.00021499,2]
[343068156,1732323042730,-500.0,0.00021499,2]
[343068158,1732323042740,-500.0,0.00021499,2]
[343068160,1732323042750,-500.0,0.00021499,2]
[343068162,1732323042760,-500.0,0.00021499,2]
[343068164,1732323042770,-500.0,0.00021499,2]
[343068166,1732323042779,-500.0,0.00021499,2]
[343068168,1732323042789,-500.0,0.00021499,2]
[343068170,1732323042798,-500.0,0.00021499,2]
[343068172,1732323042807,-500.0,0.00021499,2]
[343068174,1732323042819,-500.0,0.00021499,2]
[343068176,1732323042829,-500.0,0.00021499,2]
[343068178,1732323042838,-500.0,0.00021499,2]
[343068180,1732323042848,-500.0,0.00021499,2]
[343068182,1732323042857,-500.0,0.00021499,2]
[343068184,1732323042867,-500.0,0.00021499,2]
[343068187,1732323042877,-500.0,0.00021499,2]
[343068189,1732323042887,-500.0,0.00021499,2]
[343068191,1732323042896,-500.0,0.00021499,2]
[343068193,1732323042906,-500.0,0.00021499,2]
[343068195,1732323042916,-500.0,0.00021499,2]
[343068198,1732323042926,-500.0,0.00021499,2]
[343068200,1732323042935,-500.0,0.00021499,2]
[343068202,1732323042945,-500.0,0.00021499,2]
[343068205,1732323042954,-500.0,0.00021499,2]
[343068208,1732323042964,-393.59008487,0.00021499,2]
[343068211,1732323042974,-247.70477496,0.00021499,2]
[343068213,1732323042982,-500.0,0.00021499,2]
[343068215,1732323042991,-500.0,0.00021499,2]
[343068217,1732323042999,-500.0,0.00021499,2]
[343068219,1732323043008,-500.0,0.00021499,2]
[343068221,1732323043018,-500.0,0.00021499,2]
[343068223,1732323043026,-500.0,0.00021499,2]
[343068225,1732323043035,-500.0,0.00021499,2]
[343068227,1732323043045,-500.0,0.00021499,2]
[343068229,1732323043055,-500.0,0.00021499,2]
[343068232,1732323043068,-500.0,0.00021499,2]
[343068233,1732323043078,-500.0,0.00021499,2]
[343068236,1732323043088,-500.0,0.00021499,2]
[343068238,1732323043098,-427.91478405,0.00021499,2]
[343068240,1732323043108,-500.0,0.00021499,2]
[343068241,1732323043118,-500.0,0.00021499,2]
[343068243,1732323043128,-500.0,0.00021499,2]
[343068246,1732323043138,-500.0,0.00021499,2]
[343068248,1732323043147,-500.0,0.00021499,2]
[343068250,1732323043157,-500.0,0.00021499,2]
[343068252,1732323043167,-500.0,0.00021499,2]
[343068254,1732323043177,-500.0,0.00021499,2]
[343068256,1732323043189,-500.0,0.00021499,2]
[343068258,1732323043199,-500.0,0.00021499,2]
[343068265,1732323043300,-500.0,0.00021499,2]
[343068267,1732323043333,-500.0,0.00021499,2]
[343068269,1732323043343,-500.0,0.00021499,2]
[343068270,1732323043353,-500.0,0.00021499,2]
[343068272,1732323043364,-500.0,0.00021499,2]
[343068273,1732323043373,-500.0,0.00021499,2]
[343068274,1732323043383,-500.0,0.00021499,2]
[343068276,1732323043392,-500.0,0.00021499,2]
[343068277,1732323043401,-500.0,0.00021499,2]
[343068279,1732323043411,-500.0,0.00021499,2]
[343068280,1732323043420,-242.7914784,0.00021499,2]
[343068282,1732323043430,-500.0,0.00021499,2]
[343068284,1732323043441,-500.0,0.00021499,2]
[343068285,1732323043451,-500.0,0.00021499,2]
[343068287,1732323043461,-500.0,0.00021499,2]
[343068288,1732323043471,-173.19782049,0.00021499,2]
[343068290,1732323043481,-500.0,0.00021499,2]
[343068291,1732323043491,-500.0,0.00021499,2]
[343068293,1732323043501,-446.70275261,0.00021499,2]
[343068295,1732323043510,-89004.63671323,0.000215,8]
[343068311,1732323043760,-306.316,0.000215,8]
[343068316,1732323043813,-9857.9263527,0.000215,8]
[343068317,1732323043827,-11326.35629933,0.000215,8]
[343068319,1732323043839,-269.84415197,0.000215,8]
[343070383,1732323456305,158.237921,0.00013973,2]
[343070586,1732324235889,-192.402302,0.00019642,2]
[343070588,1732324235900,-179.467864,0.00019993,2]
[343070590,1732324235909,-160.0,0.0002,2]
[343070592,1732324235919,-277.815848,0.00020173,2]
[343070594,1732324235930,-201.0,0.00020227,2]
[343070596,1732324235939,-300.0,0.00020227,2]
[343070598,1732324235949,-6023.79511633,0.00020228,2]
[343070600,1732324235960,-1438.12773365,0.00020228,2]
[343070608,1732324236029,-9575.13217632,0.00020228,2]
[343070610,1732324236040,-417.2039966,0.00020285,2]
[343070612,1732324236050,-3000.0,0.00021,2]
[343070614,1732324236061,-3000.0,0.0002101,2]
[343070616,1732324236072,-3000.0,0.0002102,2]
[343070618,1732324236083,-3000.0,0.0002103,2]
[343070620,1732324236094,-3287.099399,0.0002104,2]
[343070622,1732324236104,-6239.97593054,0.0002114,2]
[343070624,1732324236114,-362.52940973,0.0002114,2]
[343070626,1732324236124,-260.31,0.000214,2]
[343070628,1732324236133,-250.86048768,0.000214,2]
[343070630,1732324236143,-500.0,0.00021473,2]
[343070632,1732324236152,-500.0,0.00021473,2]
[343070633,1732324236161,-220.04,0.0002149,3]
[343070635,1732324236171,-660.12,0.0002149,3]
[343070637,1732324236181,-160.54315225,0.00021498,2]
[343070639,1732324236190,-27909.33178139,0.000215,8]
[343070642,1732324236202,-14265.32156029,0.000215,8]
[343070643,1732324236214,-1455.71643624,0.000215,8]
[343070876,1732324238718,-4926.0,0.000215,8]
[343070892,1732324240535,-1767.9997,0.000215,8]
[343070893,1732324240549,-2016.33430756,0.000215,8]
[343070962,1732324243752,-160.0,0.00020227,2]
[343070964,1732324243762,-11651.62270844,0.000215,8]
[343070966,1732324243776,-3668.17644984,0.000215,8]
[343070968,1732324243788,-7900.64411224,0.000215,8]
[343070970,1732324243799,-1998.0,0.000215,8]
[343071279,1732324246606,-347.56382516,0.000215,8]
[343071281,1732324246617,-581.16554434,0.000215,8]
[343071576,1732324631830,158.237921,0.00013973,2]
[343071637,1732325300366,401.41055821,0.000123,2]
[343071638,1732325302236,9263.7665033,0.000125,2]
[343071640,1732325316102,273.89225904,0.0001,2]
[343071648,1732325323168,20068.80100461,0.0001,2]
[343071654,1732325326799,1000.0,0.0001,2]
[343071664,1732325346011,158.237921,0.00013973,2]
[343072065,1732325436394,-407.59535408,0.00019002,2]
[343072067,1732325436407,-541.64512615,0.00019002,2]
[343072069,1732325436418,-316.09929999,0.00019002,2]
[343072073,1732325436431,-1747.67719228,0.00019002,2]
[343072076,1732325436441,-710.36028119,0.00019052,2]
[343072079,1732325436456,-75.61430521,0.00019052,2]
[343072081,1732325436466,-793.75,0.00019876,2]
[343072094,1732325436476,-481.55461054,0.000199,2]
[343072096,1732325436612,-300.0,0.00019989,2]
[343072098,1732325436622,-300.0,0.00019989,2]
[343072100,1732325436632,-22066.4462626,0.0001999,2]
[343072102,1732325436642,-244.51659208,0.0002,2]
[343072104,1732325436651,-160.0,0.0002,2]
[343072106,1732325436661,-3636.46110026,0.0002,2]
[343072333,1732325439991,-964.72035308,0.00018812,2]
[343072334,1732325440001,-1417.53889974,0.0002,2]
[343072335,1732325440011,-766.43125218,0.0002,2]
[343072431,1732325524103,407.760735,0.00029615,120]
[343072447,1732325912382,510.0,0.000296,120]
[343072451,1732326074967,158.884983,0.00013973,2]
[343072477,1732326169066,245.0,0.00016,2]
[343072566,1732326622794,1012.0,0.00029614,120]
[343072901,1732326635386,-183.4748385,0.00016557,2]
[343072902,1732326635396,-660.721178,0.00017232,2]
[343072903,1732326635405,-1668.7051175,0.00017459,2]
[343072904,1732326635414,-417.2858663,0.00017786,2]
[343072905,1732326635432,-2006.98531122,0.00017795,2]
[343072907,1732326635448,-398.795909,0.00017795,2]
[343072909,1732326635462,-2166.22612238,0.00017795,2]
[343072911,1732326635471,-307.37050139,0.00017979,2]
[343072913,1732326635481,-2711.607449,0.0001808,2]
[343072915,1732326635492,-908.3986318,0.00018108,2]
[343072917,1732326635502,-180.19610623,0.00018418,2]
[343073187,1732326638181,-119.80389377,0.00018418,2]
[343073188,1732326638191,-307.37050138,0.00018433,2]
[343073189,1732326638201,-568.98798453,0.00018708,2]
[343073190,1732326638210,-1571.35224,0.00018808,2]
[343073191,1732326638222,-1269.99999925,0.00018808,2]
[343073363,1732326639913,-2325.4,0.00018808,2]
[343073387,1732326640150,-19733.24776075,0.00018808,2]
[343073389,1732326640160,-1562.38227873,0.00018808,2]
[343073391,1732326640170,-307.37050138,0.00018887,2]
[343073393,1732326640179,-841.83122714,0.00019057,2]
[343073395,1732326640188,-160.877638,0.00019178,2]
[343073397,1732326640198,-1719.358256,0.00019181,2]
[343073399,1732326640207,-568.98798447,0.00019778,2]
[343073401,1732326640216,-1719.358256,0.00019866,2]
[343073403,1732326640226,-501.15559847,0.000199,2]
[343073405,1732326640235,-481.48,0.0001999,3]
[343073407,1732326640244,-240.74,0.0001999,3]
[343073409,1732326640253,-722.23,0.0001999,3]
[343073411,1732326640263,-1758.56874782,0.0002,2]
[343073413,1732326640272,-2525.0,0.0002,2]
[343073415,1732326640291,-2525.0,0.0002,2]
[343073417,1732326640301,-2525.0,0.0002,2]
[343073419,1732326640311,-160.0,0.0002,2]
[343073421,1732326640323,-195.266794,0.0002,2]
[343073423,1732326640334,-14039.0,0.0002,2]
[343073425,1732326640344,-860.2637443,0.0002019,2]
[343073427,1732326640357,-172.51391,0.00020225,2]
[343073429,1732326640367,-153.0,0.00020241,2]
[343073431,1732326640376,-153.0,0.00020241,2]
[343073433,1732326640385,-153.0,0.00020241,2]
[343073435,1732326640397,-153.0,0.00020242,2]
[343073437,1732326640407,-420.0,0.0002026,2]
[343073439,1732326640417,-158.884983,0.00020447,2]
[343073441,1732326640428,-1719.358256,0.00020551,2]
[343073443,1732326640437,-154.8950149,0.00021123,2]
[343073445,1732326640447,-153.0,0.00021123,2]
[343073447,1732326640457,-153.0,0.00021123,2]
[343073449,1732326640466,-153.0,0.00021123,2]
[343073451,1732326640476,-1856.85,0.000213,2]
[343073453,1732326640485,-962.96,0.0002136,3]
[343073455,1732326640495,-481.48,0.0002136,3]
[343073457,1732326640505,-260.31,0.000214,2]
[343073459,1732326640516,-251.70894097,0.000214,2]
[343073461,1732326640525,-1132.17498321,0.000214,2]
[343073463,1732326640538,-500.0,0.00021473,2]
[343073465,1732326640547,-500.53573949,0.00021473,2]
[343073466,1732326640557,-541.01877325,0.00021473,2]
[343073467,1732326640567,-501.67900876,0.00021473,2]
[343073468,1732326640576,-500.71035881,0.00021473,2]
[343073469,1732326640586,-500.5523922,0.00021473,2]
[343073470,1732326640595,-505.13139573,0.00021473,2]
[343073471,1732326640605,-502.63729478,0.00021473,2]
[343073472,1732326640614,-503.59694439,0.00021473,2]
[343073473,1732326640624,-500.73684502,0.00021473,2]
[343073474,1732326640780,-162.5047259,0.00021498,2]
[343073475,1732326640791,-500.0,0.00021499,2]
[343073476,1732326640801,-500.0,0.00021499,2]
[343073478,1732326640811,-500.0,0.00021499,2]
[343073480,1732326640821,-433.4088273,0.00021499,2]
[343073482,1732326640830,-452.56207903,0.00021499,2]
[343073484,1732326640840,-500.0,0.00021499,2]
[343073486,1732326640849,-500.0,0.00021499,2]
[343073488,1732326640858,-500.0,0.00021499,2]
[343073489,1732326640867,-500.0,0.00021499,2]
[343073491,1732326640876,-500.0,0.00021499,2]
[343073493,1732326640885,-500.0,0.00021499,2]
[343073495,1732326640895,-500.0,0.00021499,2]
[343073496,1732326640905,-545.72631638,0.00021499,2]
[343073497,1732326640914,-643.47233201,0.00021499,2]
[343073498,1732326640924,-165.69065023,0.00021499,2]
[343073499,1732326640933,-500.0,0.00021499,2]
[343073500,1732326640943,-289.91623864,0.00021499,2]
[343073501,1732326640953,-109737.16000388,0.000215,8]
[343073588,1732326643594,-1667.36654273,0.00018931,2]
[343073590,1732326643606,-7388.36650476,0.00018931,2]
[343073591,1732326643617,-9055.73304749,0.00019326,2]
[343073593,1732326643627,-9055.73304749,0.00019587,2]
[343073594,1732326643637,-9055.73304749,0.00019842,2]
[343073595,1732326643646,-4253.29883457,0.000215,8]
[343073620,1732326646134,-160.0,0.0002,2]
[343073621,1732326646144,-568.98798447,0.00020849,2]
[343073622,1732326646154,-38650.27303956,0.000215,8]
[343073635,1732326782705,158.884983,0.00013973,2]
[343073668,1732327654497,165.88163,0.00013973,2]
[343073768,1732327832456,-4686.5821355,0.00019448,2]
[343073771,1732327832466,-330.360589,0.00019485,2]
[343073774,1732327832476,-188.06257727,0.00019557,2]
[343073779,1732327832488,-111.93742273,0.00019557,2]
[343073781,1732327832498,-300.0,0.00019557,2]
[343073784,1732327832509,-1968.78680885,0.00019558,2]
[343073788,1732327832520,-1213.75953806,0.00019558,2]
[343073791,1732327832532,-1784.29730916,0.00019558,2]
[343073834,1732327838464,-19933.15634393,0.00019558,2]
[343073836,1732327838474,-483.0419,0.00019609,2]
[343073838,1732327838484,-160.0,0.0002,2]
[343073839,1732327838494,-485.86020878,0.0002,2]
[343073840,1732327838503,-173.9479197,0.0002022,2]
[343073842,1732327838513,-483.0419,0.00020294,2]
[343073843,1732327838523,-165.88163,0.00020447,2]
[343073844,1732327838532,-164.98,0.00020479,2]
[343073845,1732327838542,-8269.86052619,0.00020615,2]
[343073846,1732327838552,-689.03963326,0.00020615,2]
[343073847,1732327838561,-8269.86052619,0.00020957,2]
[343073848,1732327838571,-483.0419,0.00020979,2]
[343073849,1732327838580,-3000.0,0.00021,2]
[343073850,1732327838589,-3000.0,0.0002101,2]
[343073851,1732327838599,-3000.0,0.0002102,2]
[343073852,1732327838608,-3000.0,0.0002103,2]
[343073853,1732327838618,-1633.14465642,0.0002104,2]
[343073854,1732327838631,-3616.66865358,0.0002104,2]
[343073855,1732327838641,-4313.97249642,0.00021101,2]
[343073861,1732327840168,-1336.22740859,0.00021101,2]
[343073867,1732327840421,-1895.45191681,0.00021101,2]
[343073868,1732327840433,-501.98208771,0.00021101,2]
[343073900,1732327844191,-222.22661667,0.00021101,2]
[343073903,1732327844201,-420.0,0.00021306,2]
[343073904,1732327844211,-500.0,0.00021398,2]
[343073905,1732327844221,-86.24168729,0.00021398,2]
[343073932,1732328546618,164.503818,0.00013973,2]
[343073981,1732328920560,155.27129816,0.00025,120]
[343074089,1732329032526,-281.60976922,0.00019572,2]
[343074091,1732329032536,-165.180295,0.0001962,2]
[343074093,1732329032546,-300.0,0.00019989,2]
[343074095,1732329032556,-300.0,0.00019989,2]
[343074097,1732329032565,-10237.84025363,0.0001999,2]
[343074099,1732329032577,-1674.18613365,0.0001999,2]
[343074113,1732329032701,-1556.85308618,0.0001999,2]
[343074115,1732329032713,-5569.99823984,0.0001999,2]
[343074117,1732329032725,-2629.59720443,0.0001999,2]
[343074304,1732329040351,-1487.499995,0.0001999,2]
[343074313,1732329043778,-410.07645799,0.0001999,2]
[343077597,1732329206517,164.503818,0.00013973,2]
[343077674,1732329953460,392.93,0.00022,30]
[343077726,1732330215012,164.503818,0.00013973,2]
[343077765,1732330232716,-160.877638,0.00019178,2]
[343077767,1732330232725,-173.1855268,0.00019415,2]
[343077769,1732330232736,-300.0,0.00019448,2]
[343077771,1732330232745,-300.0,0.00019448,2]
[343077773,1732330232756,-9564.89755888,0.00019449,2]
[343077775,1732330232767,-562.1,0.00019449,2]
[343077777,1732330232779,-3802.49026779,0.00019449,2]
[343077852,1732330238857,-4225.99998505,0.00019449,2]
[343077961,1732330925515,164.503818,0.00013973,2]
[343077962,1732331046990,2987.30969451,0.000296,120]
[343077963,1732331047013,35.45180797,0.000296,120]
[343078050,1732331433088,-541.6451261,0.00018759,2]
[343078051,1732331433099,-275.2205007,0.00018877,2]
[343078052,1732331433110,-252.58638095,0.00019156,2]
[343078053,1732331433120,-300.0,0.00019581,2]
[343078054,1732331433133,-300.0,0.00019581,2]
[343078055,1732331433143,-15158.91,0.00019582,2]
[343078056,1732331433153,-459.35975551,0.00019583,2]
[343078057,1732331433163,-20529.78064591,0.00019583,2]
[343078058,1732331433176,-4370.21935409,0.00019583,2]
[343078059,1732331433185,-165.1802957,0.00019583,2]
[343078060,1732331433195,-593.48830469,0.00019883,2]
[343078061,1732331433205,-15158.91,0.00019988,2]
[343078062,1732331433215,-9243.39401481,0.0001999,2]
[343078063,1732331433228,-1136.62718021,0.0001999,2]
[343078122,1732331438802,-4056.98723215,0.0001999,2]
[343078123,1732331438811,-160.0,0.0002,2]
[343078125,1732331438821,-500.0,0.00020551,2]
[343078126,1732331438830,-153.0,0.00020591,2]
[343078127,1732331438840,-324.17441523,0.00020878,2]
[343078128,1732331438850,-161.62338671,0.00020998,2]
[343078129,1732331438859,-226.5380469,0.00021,2]
[343078130,1732331438869,-161.6233867,0.00021049,2]
[343078131,1732331438882,-505.236898,0.00021073,2]
[343078132,1732331438891,-382.04694226,0.00021073,2]
[343078133,1732331438901,-154.43407092,0.00021073,2]
[343078135,1732331438914,-500.0,0.00021073,2]
[343078137,1732331438924,-500.0,0.00021073,2]
[343078139,1732331438933,-302.53183071,0.00021073,2]
[343078141,1732331438943,-500.0,0.00021073,2]
[343078143,1732331438953,-164.42382466,0.00021096,2]
[343078145,1732331438963,-987.93098545,0.00021097,2]
[343078170,1732331440717,-14170.97901455,0.00021097,2]
[343078172,1732331440727,-15158.91,0.00021097,2]
[343078175,1732331440737,-500.0,0.00021097,2]
[343078177,1732331440748,-500.0,0.00021097,2]
[343078179,1732331440758,-617.02530256,0.00021097,2]
[343078181,1732331440768,-500.0,0.00021097,2]
[343078183,1732331440777,-500.0,0.00021097,2]
[343078184,1732331440787,-500.0,0.00021097,2]
[343078186,1732331440797,-500.0,0.00021097,2]
[343078188,1732331440806,-500.0,0.00021097,2]
[343078190,1732331440816,-500.0,0.00021097,2]
[343078192,1732331440826,-500.0,0.00021097,2]
[343078194,1732331440836,-500.0,0.00021097,2]
[343078196,1732331440846,-189.1177107,0.00021097,2]
[343078197,1732331440855,-216.31018096,0.00021097,2]
[343078247,1732331444815,-259.46929485,0.00021097,2]
[343078248,1732331444825,-241.81848133,0.00021097,2]
[343078250,1732331444837,-258.18151867,0.00021097,2]
[343078252,1732331444846,-500.0,0.00021097,2]
[343078254,1732331444855,-23.87429886,0.00021097,2]
[343078277,1732331445123,-476.12570114,0.00021097,2]
[343078278,1732331445136,-500.0,0.00021097,2]
[343078280,1732331445146,-500.0,0.00021097,2]
[343078282,1732331445156,-500.0,0.00021097,2]
[343078283,1732331445164,-500.0,0.00021097,2]
[343078284,1732331445174,-490.2265213,0.00021097,2]
[343078302,1732331769912,250.0,0.000294,120]
[343078304,1732331781196,164.503818,0.00013973,2]
[343078315,1732331833102,265.2,0.00029,120]
[343078807,1732332633195,-300.0,0.00017573,2]
[343078808,1732332633205,-300.0,0.00017573,2]
[343078811,1732332633215,-24900.0,0.00017574,2]
[343078812,1732332633225,-2769.3697111,0.00017785,2]
[343078814,1732332633234,-200.80236,0.00017912,2]
[343078816,1732332633244,-504.66979546,0.00018201,2]
[343078818,1732332633253,-18996.4508604,0.00018201,2]
[343078820,1732332633263,-158.7587336,0.00018244,2]
[343078822,1732332633273,-2667.0742094,0.00018475,2]
[343078824,1732332633282,-152.0,0.00018993,2]
[343078826,1732332633292,-12855.02,0.00019178,2]
[343078828,1732332633302,-160.877638,0.00019178,2]
[343078830,1732332633313,-420.0,0.00019182,2]
[343078832,1732332633323,-12855.02,0.00019243,2]
[343078834,1732332633333,-12855.02,0.00019243,2]
[343078836,1732332633343,-151.0,0.00019244,2]
[343078838,1732332633354,-151.0,0.00019244,2]
[343078840,1732332633365,-9295.96957924,0.00019244,2]
[343078842,1732332633382,-3559.05042076,0.00019244,2]
[343078844,1732332633391,-420.0,0.0001933,2]
[343078846,1732332633402,-190.357052,0.00019988,2]
[343078848,1732332633412,-190.357052,0.00019988,2]
[343078850,1732332633423,-151.0,0.00019989,2]
[343078852,1732332633434,-5569.99823984,0.0001999,2]
[343078854,1732332633445,-5575.24291249,0.00019997,2]
[343078856,1732332633458,-3519.79999999,0.00019997,2]
[343078857,1732332633470,-1110.26804926,0.00019997,2]
[343078858,1732332636429,164.503818,0.00013973,2]
[343078922,1732332639397,-494.15511447,0.00018144,2]
[343078989,1732332645384,-135.69812923,0.00018144,2]
[343078990,1732332645395,-629.85324363,0.00019256,2]
[343078991,1732332645406,-2649.70903826,0.00019997,2]